bitfinex/quotes_ETHUSD_20260131
["timestamp","ask_amount","ask_price","bid_price","bid_amount"]
[1769891979308,13.54433471,2364.2,2362.8,1.05803643]
[1769891979509,13.69809263,2364.1,2362.6,0.0011]
[1769891979713,0.01672695,2363.2,2362.6,0.0011]
[1769891979945,0.01672695,2363.4,2362.6,0.0011]
[1769891980439,0.01672695,2363.3,2362.6,0.0011]
[1769891980652,0.01672695,2363.4,2362.6,0.0011]
[1769891981044,0.01672695,2363.3,2362.6,0.0011]
[1769891981942,4.76192001,2364.5,2362.6,12.70529067]
[1769891982144,0.01672695,2364.0,2362.7,1.27052907]
[1769891982460,0.01672695,2363.5,2362.6,0.0011]
[1769891982628,0.01672695,2363.4,2362.6,0.0011]
[1769891982958,0.01672695,2363.5,2362.6,0.0011]
[1769891983156,0.01672695,2363.7,2362.8,0.0011]
[1769891983458,0.01672695,2363.4,2362.8,0.0011]
[1769891983653,0.01672695,2363.6,2362.8,0.0011]
[1769891983961,1.07451962,2363.5,2362.8,0.0011]
[1769891984258,0.01672695,2363.3,2362.8,0.0011]
[1769891984932,0.01672695,2363.7,2362.8,0.0011]
[1769891985132,0.01672695,2364.1,2362.8,0.0011]
[1769891985133,1.0574206,2364.3,2362.8,0.0011]
[1769891985361,1.07405807,2364.5,2362.8,0.0011]
[1769891985659,4.24523555,2365.0,2363.0,12.70419067]
[1769891985961,0.01672695,2365.1,2363.5,0.2335703]
[1769891986156,17.03667489,2365.4,2363.5,0.2335703]
[1769891986157,1.07369188,2365.3,2363.6,0.1024]
[1769891986333,1.07369188,2365.3,2363.7,0.2335703]
[1769891987638,0.01672695,2365.3,2363.7,0.2335703]
[1769891987842,0.01672695,2365.7,2364.0,0.2335703]
[1769891988043,0.01672695,2365.6,2364.0,1.5273464]
[1769891988260,1.05685901,2365.5,2364.1,1.05748487]
[1769891988466,0.01672695,2365.2,2364.2,0.887]
[1769891988658,0.01672695,2365.0,2364.2,0.887]
[1769891988856,0.01672695,2365.8,2364.2,1.21082945]
[1769891989038,0.01672695,2365.4,2364.2,1.21082945]
[1769891989234,0.01672695,2365.1,2364.2,1.21082945]
[1769891989556,0.01672695,2365.0,2364.0,1.05752593]
[1769891990139,1.05717185,2364.8,2363.6,1.05770858]
[1769891990361,4.24470505,2365.2,2363.6,13.76189925]
[1769891990553,4.24470505,2365.2,2363.8,0.2335703]
[1769891990875,0.01672695,2364.9,2363.7,1.79927409]
[1769891991058,0.01672695,2365.0,2363.6,1.05770858]
[1769891991448,0.01672695,2364.9,2363.6,1.05770858]
[1769891991770,12.82575894,2364.6,2362.8,4.23334557]
[1769891992059,0.01672695,2365.0,2363.5,1.05774658]
[1769891992260,0.01672695,2365.0,2363.0,4.2317388]
[1769891992261,1.05730598,2364.5,2363.0,4.2317388]
[1769891992650,1.05730598,2364.5,2363.1,0.2335703]
[1769891994266,1.05730598,2364.5,2363.2,1.05788761]
[1769891994761,1.07403293,2364.5,2363.2,1.05788761]
[1769891994970,0.54872533,2364.4,2363.2,1.58683142]
[1769891996752,13.88315436,2364.3,2363.2,0.52894381]
[1769891996956,13.88315436,2364.3,2362.8,0.0011]
[1769891996957,12.82575894,2363.9,2362.8,0.0011]
[1769891997153,12.82575894,2363.7,2362.8,0.0011]
[1769891997468,0.01672695,2363.6,2362.8,0.0011]
[1769891998546,12.82575894,2363.7,2362.8,1.05914823]
[1769891998547,12.80903199,2363.7,2362.8,1.05914823]
[1769891998860,1.05770858,2363.6,2362.8,0.0011]
[1769891999375,13.88346752,2363.6,2362.8,0.0011]
[1769892001060,1.05770858,2363.6,2362.6,0.0011]
[1769892001259,1.05770858,2363.6,2362.7,1.05809145]
[1769892001486,1.05770858,2363.6,2362.6,0.0011]
[1769892002186,1.05770858,2363.6,2362.6,1.05923498]
[1769892002396,13.86674057,2363.6,2362.6,0.0011]
[1769892003211,1.05757434,2363.9,2362.6,0.0011]
[1769892004185,12.80903199,2363.8,2362.6,0.0011]
[1769892004354,12.82575894,2363.8,2362.6,0.0011]
[1769892004554,12.80903199,2363.8,2362.6,0.0011]
[1769892004979,12.80903199,2363.6,2362.6,0.0011]
[1769892005485,1.05766383,2363.7,2362.6,0.0011]
[1769892006260,2.32153866,2363.7,2362.6,0.0011]
[1769892007390,2.32153866,2363.7,2362.8,0.0011]
[1769892007984,14.94079367,2363.7,2362.8,0.0011]
[1769892009287,14.94079367,2363.7,2362.6,0.0011]
[1769892013700,13.67691884,2363.7,2362.6,0.0011]
[1769892013999,1.05766383,2363.7,2362.6,0.0011]
[1769892014500,13.67691884,2363.7,2362.6,0.0011]
[1769892015593,12.63598196,2363.3,2361.7,4.37049178]
[1769892015795,12.63598196,2362.9,2361.7,4.02094123]
[1769892015994,12.61925501,2362.3,2360.6,1.05904052]
[1769892016192,0.01672695,2362.4,2360.6,1.05901889]
[1769892016193,12.61925501,2362.1,2360.6,1.05901889]
[1769892016393,12.61925501,2362.1,2360.7,1.59020429]
[1769892016598,12.61925501,2362.1,2360.7,0.53120962]
[1769892016902,12.61925501,2362.1,2360.3,0.01672695]
[1769892017102,0.887,2362.2,2360.0,0.01672695]
[1769892017103,1.05855951,2361.7,2360.0,0.01672695]
[1769892017294,1.05855951,2361.7,2360.2,0.01672695]
[1769892017790,5.13722099,2362.2,2360.2,0.01672695]
[1769892017791,13.67759046,2362.3,2360.8,0.01672695]
[1769892017991,0.01672695,2363.2,2361.0,0.01672695]
[1769892017992,1.05820105,2362.5,2361.0,0.01672695]
[1769892018191,0.52909506,2362.4,2361.1,0.01672695]
[1769892018803,1.05797714,2363.0,2361.6,0.01672695]
[1769892019006,1.05797714,2363.0,2362.8,0.0011]
[1769892019302,1.05797714,2363.0,2361.5,0.01672695]
[1769892019508,13.67723215,2363.0,2361.5,1.0586419]
[1769892019692,12.61925501,2362.8,2361.8,1.0584985]
[1769892019898,0.69215598,2362.9,2361.8,1.0585116]
[1769892020097,0.69215598,2362.9,2361.9,0.5292732]
[1769892020294,0.69215598,2362.9,2361.6,0.0011]
[1769892020495,13.31141099,2362.9,2361.6,0.0011]
[1769892020806,0.69215598,2362.9,2361.8,1.05850644]
[1769892020996,13.67723215,2363.0,2361.8,1.05850644]
[1769892021180,12.61925501,2362.6,2361.6,0.0011]
[1769892021384,12.63598196,2362.2,2359.9,12.66764976]
[1769892021591,0.01672695,2361.9,2360.0,0.887]
[1769892021906,12.61925501,2361.6,2360.7,1.05900558]
[1769892022109,12.61925501,2361.6,2360.8,1.0589474]
[1769892022110,0.71850481,2361.6,2360.8,1.0589474]
[1769892022316,12.61925501,2362.0,2360.8,1.0589474]
[1769892022613,14.0053913,2362.5,2360.8,1.0589474]
[1769892022911,12.63598196,2362.5,2360.8,1.0589474]
[1769892023111,12.61925501,2362.5,2360.8,1.07567435]
[1769892023284,12.61925501,2362.5,2360.7,4.25260772]
[1769892023285,1.05824585,2362.4,2361.0,1.05887335]
[1769892023486,12.61925501,2362.2,2360.2,0.01672695]
[1769892023817,1.2635982,2362.1,2360.9,1.05891576]
[1769892024017,1.05824585,2362.4,2360.9,1.05891576]
[1769892024213,1.05824585,2362.4,2360.8,4.25239978]
[1769892024214,13.67750086,2362.4,2360.8,1.05893596]
[1769892024509,12.61925501,2362.2,2360.9,1.05891627]
[1769892025010,12.61925501,2362.2,2360.9,1.05890963]
[1769892025383,1.05838025,2362.1,2360.7,4.23597007]
[1769892025584,1.05838025,2362.1,2360.6,1.05901831]
[1769892025786,13.67763526,2362.1,2360.6,1.05901831]
[1769892025986,13.67763526,2362.1,2360.6,1.58854648]
[1769892025987,14.41037064,2362.0,2360.6,1.58854648]
[1769892026186,14.41037064,2362.0,2360.6,1.60527343]
[1769892026187,1.79111563,2362.0,2360.6,1.60527343]
[1769892026417,1.05838025,2362.1,2360.6,1.60527343]
[1769892026611,1.05838025,2362.1,2360.6,1.58854648]
[1769892027614,12.61925501,2362.1,2360.6,1.58854648]
[1769892027800,12.61925501,2362.1,2360.6,1.05901831]
[1769892028505,12.61925501,2362.1,2360.6,1.05902155]
[1769892028891,4.23352101,2362.2,2360.8,0.01672695]
[1769892029217,12.61925501,2362.1,2360.6,1.05902155]
[1769892029531,12.61925501,2362.1,2360.4,4.25293808]
[1769892029532,1.05842506,2362.0,2360.4,4.25293808]
[1769892029691,1.36776801,2361.9,2360.5,0.5496077]
[1769892029893,1.36776801,2361.9,2360.6,0.01672695]
[1769892030093,1.36776801,2361.9,2360.7,0.01672695]
[1769892030285,1.36776801,2361.9,2360.6,0.01672695]
[1769892031207,1.05842506,2362.0,2360.8,0.01672695]
[1769892031520,13.67745606,2362.5,2360.9,1.0589182]
[1769892031720,13.67745606,2362.5,2361.0,0.01672695]
[1769892032021,0.001,2361.8,2361.0,0.01672695]
[1769892032219,13.67745606,2362.5,2361.3,12.66764976]
[1769892032220,1.05820105,2362.5,2361.3,12.66764976]
[1769892032419,4.23280423,2362.6,2361.3,12.66764976]
[1769892032420,1.0580667,2362.8,2361.4,0.01752695]
[1769892032633,1.0580667,2362.8,2361.4,0.0008]
[1769892032791,13.67732171,2362.8,2361.4,0.0008]
[1769892033192,1.0580667,2362.8,2361.4,0.0008]
[1769892033388,0.55724187,2362.7,2361.4,0.0008]
[1769892033616,1.05815626,2362.6,2361.4,0.0008]
[1769892034019,0.28225707,2362.9,2361.4,12.65172281]
[1769892034201,0.28225707,2362.9,2361.7,12.66764976]
[1769892034405,1.05795326,2363.1,2361.9,12.66764976]
[1769892034903,1.05795326,2363.1,2362.0,0.01672695]
[1769892035102,1.05792124,2363.2,2362.0,0.01672695]
[1769892035638,0.001,2363.5,2362.6,0.01672695]
[1769892035796,0.001,2363.5,2362.7,0.01672695]
[1769892035993,0.28262026,2364.0,2363.0,12.66764976]
[1769892036217,0.28262026,2364.0,2362.7,0.01672695]
[1769892036218,1.3401521,2364.0,2363.1,1.26843767]
[1769892036430,1.3401521,2364.0,2362.2,4.24971035]
[1769892036431,0.01672695,2363.8,2361.8,1.26843767]
[1769892036624,0.01672695,2363.8,2362.3,1.05827417]
[1769892036625,12.61925501,2363.7,2362.3,1.05827417]
[1769892037005,14.08691881,2364.0,2362.3,1.07500112]
[1769892037204,1.83337642,2363.9,2362.4,0.53248907]
[1769892037527,14.58014313,2363.9,2362.3,1.05827417]
[1769892037830,12.74676671,2363.7,2362.1,4.23316259]
[1769892038125,12.74676671,2363.7,2361.9,0.888]
[1769892038423,12.74676671,2363.5,2362.0,1.05841985]
[1769892039101,12.74676671,2363.5,2362.0,1.0751468]
[1769892039328,12.74676671,2363.5,2362.0,1.05841985]
[1769892039620,12.74676671,2363.5,2362.0,1.0751468]
[1769892040201,13.80456479,2363.4,2362.0,1.05841985]
[1769892040412,1.80357571,2363.3,2362.0,1.05841985]
[1769892041128,1.80357571,2363.3,2362.0,1.0751468]
[1769892041629,1.0577797,2363.5,2362.3,0.01672695]
[1769892041837,1.34018083,2364.0,2362.7,0.01672695]
[1769892042035,1.34018083,2364.0,2362.7,1.32748115]
[1769892042212,1.34018083,2364.0,2362.8,1.0580667]
[1769892042531,14.03442673,2364.0,2362.7,1.0580845]
[1769892043118,14.03442673,2364.0,2362.7,1.07481145]
[1769892043306,16.28389309,2364.0,2362.8,0.53241119]
[1769892043830,3.58964719,2364.0,2362.8,0.53241119]
[1769892044024,1.34018083,2364.0,2362.8,1.41941119]
[1769892044221,1.34018083,2364.0,2362.8,2.47743811]
[1769892044404,0.001,2363.8,2362.8,1.05802692]
[1769892045134,0.001,2363.8,2362.5,0.887]
[1769892045348,0.001,2363.8,2362.8,1.05806527]
[1769892045829,0.001,2363.8,2362.8,1.05805926]
[1769892046218,0.001,2363.8,2362.6,1.05815626]
[1769892046419,0.001,2363.8,2362.7,0.61779569]
[1769892047226,0.001,2363.8,2362.3,1.05826019]
[1769892047227,12.6952459,2363.8,2362.3,1.05826019]
[1769892047539,12.6952459,2363.8,2362.5,1.05819125]
[1769892047909,12.6952459,2363.8,2362.4,1.05824422]
[1769892048250,0.001,2363.8,2362.5,1.05817798]
[1769892048440,0.001,2363.8,2362.7,1.05811148]
[1769892049921,0.001,2363.8,2362.7,1.07483843]
[1769892050646,0.001,2363.8,2362.8,0.2335703]
[1769892050943,1.34018083,2364.0,2363.0,0.01672695]
[1769892050944,0.28262026,2364.0,2363.0,0.01672695]
[1769892051108,0.28262026,2364.0,2363.1,0.90372695]
[1769892052537,14.59139073,2364.0,2363.1,0.887]
[1769892052739,14.59139073,2364.0,2362.2,0.41384315]
[1769892052740,12.71097285,2363.7,2362.2,0.0011]
[1769892052930,12.71097285,2363.7,2362.3,1.05826905]
[1769892052931,12.6942459,2363.5,2362.3,1.05826905]
[1769892053127,1.27109729,2363.4,2362.2,13.22573064]
[1769892053329,0.01672695,2363.9,2362.2,0.0011]
[1769892053330,0.01672695,2363.5,2362.2,0.0011]
[1769892053536,12.71097285,2363.1,2362.2,0.0011]
[1769892054021,0.90372695,2363.5,2362.2,0.0011]
[1769892054220,13.59797285,2363.5,2362.2,0.42467207]
[1769892054419,1.05779808,2363.4,2362.2,0.42467207]
[1769892054737,13.75204398,2363.4,2362.2,0.42467207]
[1769892054940,13.76877093,2363.4,2362.2,0.0011]
[1769892056236,13.76877093,2363.4,2363.3,0.0011]
[1769892056420,13.76877093,2363.4,2362.2,0.0011]
[1769892056741,13.76877093,2363.4,2363.0,0.0011]
[1769892056950,14.58461492,2363.3,2363.0,0.0011]
[1769892057155,12.6942459,2363.6,2362.2,0.0011]
[1769892057443,4.2309465,2363.7,2362.2,0.0011]
[1769892057621,4.2309465,2363.7,2362.3,0.887]
[1769892057822,0.52896103,2363.6,2362.3,0.887]
[1769892059647,1.05775333,2363.5,2362.3,1.94525003]
[1769892060152,13.75199923,2363.5,2362.3,0.887]
[1769892060327,13.75199923,2363.5,2362.3,1.94528419]
[1769892060521,1.85119736,2363.4,2362.3,0.887]
[1769892060933,13.75199923,2363.5,2362.3,0.887]
[1769892061132,14.28539132,2363.5,2362.3,0.887]
[1769892061336,13.76872618,2363.5,2362.3,0.887]
[1769892062142,12.71097285,2363.1,2362.2,0.0011]
[1769892062342,12.6942459,2362.9,2362.1,0.0011]
[1769892062560,12.6942459,2362.9,2361.4,0.0008]
[1769892062561,12.6942459,2362.7,2361.4,0.0008]
[1769892062727,12.6942459,2362.7,2361.4,1.05948081]
[1769892062923,12.6942459,2362.7,2361.5,1.05863171]
[1769892063275,12.6942459,2362.7,2361.6,1.05860188]
[1769892063552,12.6942459,2362.7,2361.4,0.0008]
[1769892063553,0.887,2362.9,2361.8,1.05848079]
[1769892063855,12.6942459,2363.1,2361.9,1.058464]
[1769892064034,1.05797714,2363.0,2361.9,1.058464]
[1769892064651,12.71097285,2362.8,2361.7,4.43239958]
[1769892064951,12.6942459,2362.6,2361.7,4.43239958]
[1769892065152,1.05797714,2363.0,2361.8,1.05849489]
[1769892065326,4.23106825,2363.5,2361.9,13.24135759]
[1769892065527,4.23106825,2363.5,2362.1,0.01672695]
[1769892065740,3.33204181,2363.5,2362.2,0.01672695]
[1769892065938,1.05775333,2363.5,2362.3,1.05829064]
[1769892066553,13.75199923,2363.5,2362.1,1.41618115]
[1769892066733,12.71097285,2363.3,2362.0,0.887]
[1769892067054,0.01672695,2363.3,2362.2,1.05831792]
[1769892067255,1.05775333,2363.5,2362.2,1.05831792]
[1769892067559,1.05775333,2363.5,2362.2,1.07504487]
[1769892067735,2.9515532,2363.5,2362.3,0.53251136]
[1769892068142,4.75987762,2363.6,2362.4,1.05824585]
[1769892068143,0.52896103,2363.6,2362.4,1.05824585]
[1769892068353,1.05771206,2363.6,2362.4,1.0749728]
[1769892068658,1.05771206,2363.6,2362.4,1.05934585]
[1769892069060,0.28262026,2364.0,2363.1,13.5059729]
[1769892069245,0.001,2364.8,2363.4,0.01672695]
[1769892069446,1.05817835,2364.8,2363.6,0.01672695]
[1769892069645,1.05817835,2364.8,2363.9,0.01672695]
[1769892069646,0.001,2364.8,2363.9,0.01672695]
[1769892069859,0.001,2364.8,2364.0,0.90372695]
[1769892070062,0.001,2364.8,2364.1,1.05748487]
[1769892070362,4.51077964,2365.4,2363.6,1.35394268]
[1769892070363,14.46027725,2365.4,2363.6,1.35394268]
[1769892070531,0.45107796,2365.3,2364.0,1.05752938]
[1769892070858,1.33990949,2365.4,2364.0,1.05752938]
[1769892070859,1.33990316,2365.4,2364.1,0.01672695]
[1769892071165,1.33990316,2365.4,2364.0,1.05752938]
[1769892071461,1.33990316,2365.4,2364.0,1.05750188]
[1769892071774,1.05694837,2365.3,2364.3,0.01672695]
[1769892071970,1.05694837,2365.3,2364.0,14.56347478]
[1769892072151,4.51074724,2365.4,2364.3,0.01672695]
[1769892072152,0.28298613,2365.4,2364.3,0.01672695]
[1769892072332,0.28298613,2365.4,2364.4,0.887]
[1769892072333,1.3398961,2365.4,2364.4,0.887]
[1769892072733,1.33990265,2365.4,2364.4,0.887]
[1769892072960,15.01700431,2365.4,2364.4,0.887]
[1769892073138,15.03373126,2365.4,2363.8,1.05761127]
[1769892073333,15.03373126,2365.4,2363.7,0.887]
[1769892073644,15.03373126,2365.4,2362.4,0.01782695]
[1769892073645,13.12036776,2364.8,2362.4,0.01782695]
[1769892073836,13.12036776,2364.4,2362.9,1.05798874]
[1769892074033,13.12036776,2364.0,2362.6,0.887]
[1769892074247,13.12036776,2364.0,2362.6,1.94514069]
[1769892074455,14.43407723,2363.9,2362.7,0.61779386]
[1769892074657,13.12036776,2363.9,2362.6,1.94515414]
[1769892075038,13.12036776,2363.9,2362.6,0.887]
[1769892075243,13.12036776,2363.9,2362.6,1.94515349]
[1769892075554,13.12036776,2363.9,2362.6,0.887]
[1769892075873,13.12036776,2363.7,2362.6,0.887]
[1769892076166,1.05770858,2363.6,2362.6,0.887]
[1769892076537,1.05770858,2363.6,2362.4,1.05931811]
[1769892076538,14.17807634,2363.6,2362.4,0.0011]
[1769892076839,14.19480329,2363.6,2362.4,0.0011]
[1769892077033,13.12036776,2364.2,2362.4,0.0011]
[1769892077259,0.01672695,2363.8,2362.6,14.54739817]
[1769892077462,0.01672695,2364.0,2362.9,13.72281625]
[1769892077631,1.05712715,2364.9,2363.0,0.1024]
[1769892077836,1.05712715,2364.9,2363.1,13.72281625]
[1769892078037,1.05712715,2364.9,2363.2,1.38900857]
[1769892078283,1.05712715,2364.9,2363.4,0.01672695]
[1769892078470,4.22848669,2365.0,2363.5,1.05775333]
[1769892078673,4.22848669,2365.0,2363.6,0.887]
[1769892079367,4.2285086,2365.1,2363.6,0.887]
[1769892079534,1.84059141,2365.0,2363.6,0.887]
[1769892080366,1.84059141,2365.0,2363.7,1.05766383]
[1769892080367,1.05712715,2364.9,2363.7,1.05766383]
[1769892080669,13.12036776,2365.2,2363.7,1.05766383]
[1769892080670,1.05706648,2365.1,2363.8,0.01672695]
[1769892081038,0.001,2364.8,2364.0,0.01672695]
[1769892081265,5.06743962,2365.4,2364.3,0.01672695]
[1769892081266,0.28298613,2365.4,2364.3,0.01672695]
[1769892081471,1.33989299,2365.4,2364.2,0.01672695]
[1769892081762,0.28298613,2365.4,2364.2,0.01672695]
[1769892082087,1.3398954,2365.4,2364.2,0.01672695]
[1769892082289,1.33989448,2365.4,2364.2,0.01672695]
[1769892082494,1.89662914,2365.4,2364.3,1.05739542]
[1769892082793,1.89662914,2365.4,2364.2,1.05740691]
[1769892083290,0.28298613,2365.4,2364.3,0.25029725]
[1769892083458,0.28298613,2365.4,2364.4,0.01672695]
[1769892083658,0.28298613,2365.4,2364.5,0.90372695]
[1769892083892,1.05663567,2366.0,2364.5,0.887]
[1769892084181,2.61695351,2366.0,2364.5,0.887]
[1769892084385,2.61695351,2366.0,2364.6,1.05726127]
[1769892084554,4.22654268,2366.2,2364.6,1.05726127]
[1769892084555,1.05654636,2366.3,2364.7,0.25029725]
[1769892084962,1.05654636,2366.3,2364.8,0.01672695]
[1769892085189,14.17691412,2366.3,2364.8,0.01672695]
[1769892085362,1.05654636,2366.3,2364.9,0.01672695]
[1769892085563,1.05654636,2366.3,2365.0,0.01672695]
[1769892086462,4.22700684,2366.4,2365.1,1.0737647]
[1769892086463,0.001,2366.4,2365.1,1.0737647]
[1769892086665,0.001,2366.4,2365.5,0.01672695]
[1769892086980,0.001,2366.4,2365.7,0.01672695]
[1769892087194,0.001,2366.4,2365.6,0.90372695]
[1769892087399,0.001,2366.4,2365.7,0.01672695]
[1769892088102,0.2826893,2367.2,2366.2,0.01672695]
[1769892088284,0.2826893,2367.2,2366.3,0.01672695]
[1769892088487,0.2826893,2367.2,2366.5,0.01672695]
[1769892088804,0.2826893,2367.2,2366.1,0.01672695]
[1769892088805,14.17638259,2367.4,2365.4,4.22747986]
[1769892089001,14.17638259,2367.4,2366.0,1.05660318]
[1769892089198,13.12036776,2367.2,2365.9,1.05667637]
[1769892089499,13.12036776,2367.2,2366.1,1.05657519]
[1769892089665,13.12036776,2367.2,2366.0,1.05661561]
[1769892089878,13.12036776,2367.2,2366.1,1.05655864]
[1769892090070,13.12036776,2367.2,2366.0,4.22653965]
[1769892090071,1.84004258,2367.3,2366.2,1.05654218]
[1769892090271,14.17638259,2367.4,2365.1,0.1024]
[1769892090489,14.17638259,2367.4,2365.5,4.22743227]
[1769892090695,13.12036776,2367.2,2365.5,4.22743227]
[1769892090891,1.36370329,2367.1,2365.6,0.52842913]
[1769892091101,14.48407105,2367.1,2365.6,0.52842913]
[1769892091397,14.48407105,2367.1,2365.3,4.22759559]
[1769892091398,14.48407105,2367.1,2365.2,0.886]
[1769892091697,13.13709471,2366.9,2365.2,0.886]
[1769892091900,13.13709471,2366.9,2365.2,1.94299218]
[1769892092206,13.12036776,2366.5,2364.4,1.07405401]
[1769892092410,14.17704809,2365.9,2363.9,1.07426697]
[1769892092695,14.17704809,2365.9,2364.0,0.54886764]
[1769892092696,0.2207975,2364.3,2364.0,0.54886764]
[1769892092909,0.2207975,2364.3,2363.9,1.96026697]
[1769892093095,0.2207975,2364.3,2364.1,0.0011]
[1769892093270,0.2150674,2364.3,2364.1,0.0011]
[1769892094106,0.2150674,2364.3,2363.9,0.886]
[1769892094694,4.22784093,2365.3,2363.9,0.886]
[1769892094695,1.05694837,2365.3,2363.9,1.94354867]
[1769892094903,1.05694837,2365.3,2364.0,0.63578425]
[1769892094904,0.42445679,2365.2,2364.0,0.63578425]
[1769892095087,0.42445679,2365.2,2364.1,0.01672695]
[1769892095289,17.34734701,2365.8,2364.5,0.01672695]
[1769892095593,17.34734701,2365.8,2364.4,0.01672695]
[1769892095804,13.12036776,2365.7,2364.1,0.01672695]
[1769892095988,4.22697925,2365.8,2364.4,0.01672695]
[1769892096184,0.52837042,2365.7,2364.4,0.01672695]
[1769892096517,0.52837042,2365.7,2364.3,0.01672695]
[1769892096697,0.52837042,2365.7,2364.2,1.05741363]
[1769892096698,1.05681433,2365.6,2364.2,1.05741363]
[1769892097089,1.05681433,2365.6,2364.2,1.07414058]
[1769892097301,0.58124421,2365.5,2364.3,0.53207852]
[1769892097700,13.77694478,2365.5,2364.3,0.53207852]
[1769892097919,13.77694478,2365.5,2364.2,1.05742851]
[1769892098119,13.77694478,2365.5,2364.3,0.01672695]
[1769892098300,13.19570057,2365.5,2364.2,1.07415546]
[1769892098504,13.19570057,2365.5,2364.4,0.01672695]
[1769892098699,1.58517196,2365.7,2364.6,0.01672695]
[1769892098927,1.58517196,2365.7,2364.6,0.55039803]
[1769892099341,1.58517196,2365.7,2364.6,0.53367108]
[1769892099999,1.05670614,2365.9,2364.6,0.55039803]
[1769892100225,14.25236606,2366.0,2364.9,0.01672695]
[1769892100422,4.22600684,2366.4,2365.0,0.01672695]
[1769892100598,1.05654636,2366.2,2365.1,1.05703775]
[1769892100845,1.50122359,2366.3,2365.1,1.0737647]
[1769892101014,1.50122359,2366.3,2365.2,0.53186427]
[1769892102539,14.13772597,2366.3,2364.6,0.53367108]
[1769892102700,14.13772597,2366.3,2364.4,1.0573507]
[1769892102909,14.13772597,2366.3,2364.4,1.07407765]
[1769892103200,12.63650238,2366.1,2364.4,1.0573507]
[1769892103399,13.52250238,2366.1,2364.3,1.05737279]
[1769892104134,12.63650238,2365.9,2364.3,1.07409974]
[1769892104422,14.53415262,2365.8,2364.5,0.01672695]
[1769892104935,1.05676966,2365.7,2364.6,1.05726127]
[1769892105104,4.22678506,2365.9,2364.8,0.01672695]
[1769892105303,4.22678506,2365.9,2364.9,0.01672695]
[1769892105506,0.001,2366.1,2365.1,0.01672695]
[1769892105729,0.001,2366.1,2365.5,0.01672695]
[1769892105935,0.28013483,2366.7,2365.6,0.01672695]
[1769892105936,1.33648364,2366.7,2365.6,0.01672695]
[1769892106108,0.55616647,2366.6,2365.3,0.01672695]
[1769892106433,1.33648364,2366.7,2366.1,0.01672695]
[1769892106434,0.28013483,2366.7,2366.1,0.01672695]
[1769892106911,0.001,2367.0,2366.5,1.07313937]
[1769892107108,0.001,2367.0,2366.3,1.0564711]
[1769892107313,0.001,2367.0,2366.4,1.05645626]
[1769892107514,0.001,2367.0,2366.4,1.58470233]
[1769892107815,0.001,2367.0,2366.4,0.52824607]
[1769892108140,0.001,2367.0,2365.8,1.05671798]
[1769892108369,0.001,2367.0,2365.5,0.90272695]
[1769892108517,12.63750238,2367.0,2365.5,0.886]
[1769892108838,12.63650238,2366.8,2365.8,1.05671888]
[1769892109042,1.05632315,2366.7,2365.6,1.05681433]
[1769892109352,1.05632315,2366.7,2365.5,2.45419674]
[1769892109510,13.69282553,2366.7,2365.5,1.94283642]
[1769892109951,13.69282553,2366.7,2365.5,1.95956337]
[1769892110546,13.69282553,2366.7,2365.5,1.94283642]
[1769892110746,13.69282553,2366.7,2365.5,0.886]
[1769892111245,13.69282553,2366.7,2365.5,1.94285129]
[1769892111446,1.79181181,2366.6,2365.5,1.94285129]
[1769892111936,1.79181181,2366.6,2365.5,1.94285267]
[1769892112328,1.05632315,2366.7,2365.5,1.95957962]
[1769892112531,1.05627851,2366.8,2365.8,0.01672695]
[1769892112742,1.05627851,2366.8,2365.9,0.01672695]
[1769892112937,0.001,2367.0,2365.6,0.01672695]
[1769892113132,12.63750238,2367.0,2365.5,0.886]
[1769892114733,12.63750238,2367.0,2365.5,1.94285546]
[1769892115559,13.69273627,2366.9,2365.5,1.94285546]
[1769892115871,13.69273627,2366.9,2365.5,0.886]
[1769892116055,13.69273627,2366.9,2365.5,1.94284289]
[1769892116259,14.42836956,2366.8,2365.5,1.50473368]
[1769892116643,14.42836956,2366.8,2365.7,0.0011]
[1769892117736,1.05632315,2366.7,2365.7,0.0011]
[1769892118262,13.69282553,2366.7,2365.7,0.0011]
[1769892118561,1.97099853,2366.6,2365.7,0.0011]
[1769892118930,14.60750091,2366.6,2365.7,0.0011]
[1769892119364,14.60750091,2366.6,2365.0,0.01672695]
[1769892119365,12.63650238,2366.2,2364.7,1.05720165]
[1769892119562,12.63650238,2366.0,2364.6,1.05722717]
[1769892119771,1.05668033,2365.9,2364.5,0.0011]
[1769892119975,1.05668033,2365.9,2364.5,1.05840598]
[1769892120342,1.05668033,2365.9,2364.5,1.07513293]
[1769892120575,1.05668033,2365.9,2364.5,1.05840598]
[1769892120873,1.05668033,2365.9,2364.8,0.01672695]
[1769892121172,0.01672695,2367.2,2364.8,0.01672695]
[1769892121173,1.05632315,2366.7,2365.4,0.01672695]
[1769892121342,0.001,2367.0,2365.8,0.01672695]
[1769892121543,0.001,2367.0,2366.2,0.01672695]
[1769892121774,0.001,2367.0,2366.3,1.05650171]
[1769892122071,1.05578782,2367.9,2366.5,0.01672695]
[1769892122243,0.01672695,2368.5,2366.5,0.01672695]
[1769892122244,0.22080609,2368.4,2367.3,13.21873013]
[1769892122443,0.22080609,2368.4,2367.2,0.01672695]
[1769892122444,0.28093113,2369.0,2368.0,13.21873013]
[1769892122678,0.001,2369.7,2368.6,0.01672695]
[1769892122875,0.001,2369.7,2369.0,0.01672695]
[1769892123077,0.001,2369.7,2369.3,0.01672695]
[1769892123287,1.05454085,2370.7,2369.6,0.01672695]
[1769892123450,13.97069584,2370.8,2368.9,0.54071627]
[1769892123781,14.42044442,2370.8,2369.4,0.01672695]
[1769892123980,14.42044442,2370.8,2369.1,1.07197632]
[1769892124177,14.42044442,2370.8,2369.2,0.01672695]
[1769892124493,12.63650238,2370.3,2369.0,0.886]
[1769892124844,12.63650238,2370.3,2368.7,0.01672695]
[1769892125046,0.1024,2370.5,2367.9,0.22074476]
[1769892125047,12.63650238,2369.7,2367.9,0.22074476]
[1769892125345,12.63650238,2369.5,2367.9,0.22074476]
[1769892125979,12.63650238,2369.3,2367.9,0.22074476]
[1769892126755,12.63650238,2368.9,2367.2,0.886]
[1769892126981,13.86035897,2368.8,2367.3,1.05604749]
[1769892127183,13.86035897,2368.8,2367.6,0.01672695]
[1769892127184,1.22385659,2368.8,2367.6,0.01672695]
[1769892127381,13.98437641,2369.3,2367.6,1.05589593]
[1769892127676,13.98437641,2369.3,2367.8,0.01672695]
[1769892127677,13.88197641,2369.3,2367.8,0.01672695]
[1769892127881,1.0552085,2369.2,2367.6,1.07262874]
[1769892128084,1.0552085,2369.2,2367.7,0.01672695]
[1769892128298,1.0552085,2369.2,2367.8,1.0725445]
[1769892128460,1.67360517,2369.1,2367.8,1.0725445]
[1769892128657,1.0552085,2369.2,2368.0,0.01672695]
[1769892128898,1.0552085,2369.2,2367.9,0.01672695]